bitfinex/quotes_SOLUSD_20240604
["timestamp","ask_amount","ask_price","bid_price","bid_amount"]
[1717508056323,6.0818,166.09,166.06,6.95]
[1717508056630,8.3095,166.09,166.06,6.95]
[1717508057731,2.2277,166.09,166.06,6.95]
[1717508058248,2.2278,166.08,166.06,6.95]
[1717508058453,2.2278,166.08,166.03,2.2284]
[1717508058626,2.2278,166.08,166.04,2.2283]
[1717508058949,2.2278,166.08,166.06,6.95]
[1717508060945,2.2277,166.09,166.06,6.95]
[1717508061250,2.2278,166.08,166.06,6.95]
[1717508061636,2.2277,166.09,166.06,6.95]
[1717508062135,4.4548,166.11,166.0,49.9174]
[1717508062136,6.551,166.13,166.08,6.95]
[1717508062451,2.2275,166.11,166.08,6.95]
[1717508063522,2.2273,166.12,166.08,6.95]
[1717508063743,2.2274,166.11,166.08,6.95]
[1717508064325,2.2273,166.12,166.08,6.95]
[1717508064527,2.2272,166.13,166.09,6.95]
[1717508064846,2.2273,166.12,166.1,6.95]
[1717508065346,2.2274,166.11,166.09,6.95]
[1717508065548,2.2272,166.13,166.09,6.95]
[1717508065753,2.2273,166.12,166.09,6.95]
[1717508066845,2.2272,166.13,166.09,6.95]
[1717508067328,2.2272,166.13,166.1,6.95]
[1717508067535,2.2273,166.12,166.1,6.95]
[1717508067837,10.6367,166.17,166.11,6.95]
[1717508068031,6.1834,166.17,166.12,6.95]
[1717508068444,2.227,166.14,166.12,6.95]
[1717508068949,2.2269,166.15,166.12,6.95]
[1717508071039,2.227,166.14,166.12,6.95]
[1717508073729,2.2269,166.15,166.12,6.95]
[1717508074532,2.227,166.14,166.1,2.2275]
[1717508074842,2.2269,166.15,166.12,6.95]
[1717508076465,2.227,166.14,166.1,9.1775]
[1717508076677,2.227,166.14,166.11,6.95]
[1717508077171,6.1834,166.17,166.06,21.7403]
[1717508077172,2.2271,166.13,166.06,15.0561]
[1717508077356,2.2271,166.13,166.1,6.95]
[1717508077665,2.2271,166.14,166.1,6.95]
[1717508078850,2.2272,166.13,166.1,6.95]
[1717508079033,2.2272,166.13,166.09,2.2276]
[1717508079363,4.4536,166.16,166.08,6.95]
[1717508079364,4.454,166.14,166.08,6.95]
[1717508079673,2.2275,166.11,166.06,2.228]
[1717508080040,2.2276,166.1,166.07,6.95]
[1717508081872,2.2277,166.09,166.05,2.2281]
[1717508082164,2.2277,166.09,166.04,2.2283]
[1717508082472,2.2277,166.09,166.05,6.95]
[1717508082687,2.2278,166.08,166.02,6.0026]
[1717508082978,2.2278,166.08,166.03,2.2284]
[1717508083179,2.2278,166.08,166.03,9.1784]
[1717508083361,2.2278,166.08,166.04,6.95]
[1717508083678,2.2278,166.08,166.04,9.1783]
[1717508083854,6.95,166.11,166.04,9.1783]
[1717508084051,2.2277,166.09,166.04,2.2283]
[1717508084356,2.2278,166.08,166.04,6.95]
[1717508085178,2.2278,166.08,166.04,9.1783]
[1717508085683,6.95,166.1,165.99,16.4606]
[1717508085863,6.95,166.09,166.02,6.95]
[1717508086064,2.2282,166.06,166.01,9.1786]
[1717508086453,2.2282,166.06,166.02,2.2286]
[1717508086871,2.228,166.07,166.02,2.2286]
[1717508087047,2.2281,166.06,166.02,6.95]
[1717508087566,2.2281,166.06,166.01,2.2287]
[1717508087768,2.2283,166.05,166.0,2.2288]
[1717508088068,8.5704,166.06,166.03,6.95]
[1717508088369,2.2283,166.04,166.0,6.95]
[1717508088570,2.2285,166.03,165.98,2.2291]
[1717508088774,2.2285,166.03,166.0,6.95]
[1717508089277,2.2284,166.04,166.0,6.95]
[1717508091166,2.2283,166.05,166.01,6.95]
[1717508091372,2.2281,166.06,166.02,6.95]
[1717508091684,4.4555,166.09,166.03,6.95]
[1717508092057,2.2282,166.05,166.02,6.95]
[1717508092660,2.2283,166.04,166.0,2.2288]
[1717508093380,2.2283,166.04,166.01,6.95]
[1717508093562,2.2283,166.04,165.99,2.229]
[1717508093758,2.2283,166.04,166.01,6.95]
[1717508093962,6.95,166.07,165.98,2.229]
[1717508093963,2.2285,166.03,165.98,2.229]
[1717508094275,2.2284,166.04,166.0,6.95]
[1717508094476,2.2284,166.04,166.01,6.95]
[1717508095781,2.2284,166.04,166.0,2.2289]
[1717508095979,2.2284,166.04,166.0,9.1789]
[1717508096972,2.2284,166.04,166.0,6.95]
[1717508097170,2.2284,166.04,166.0,9.1788]
[1717508097372,2.2284,166.04,166.01,6.95]
[1717508097767,2.2282,166.05,166.02,6.95]
[1717508097972,2.2281,166.06,166.02,6.95]
[1717508098258,2.2279,166.08,166.04,6.95]
[1717508098666,2.228,166.07,166.04,6.95]
[1717508098909,2.2281,166.06,166.04,6.95]
[1717508099502,2.2281,166.06,166.01,2.2286]
[1717508099865,2.2282,166.05,166.01,9.1786]
[1717508100489,2.2282,166.05,166.01,2.2286]
[1717508100671,2.2282,166.05,166.0,2.2288]
[1717508100863,2.2282,166.05,166.0,9.1788]
[1717508101063,2.2281,166.06,166.01,2.2287]
[1717508101289,2.2281,166.06,166.01,9.1787]
[1717508102687,2.2282,166.05,166.01,9.1787]
[1717508102888,2.2281,166.06,166.01,2.2287]
[1717508103090,2.2281,166.06,166.01,9.1787]
[1717508104677,6.95,166.06,166.0,2.2289]
[1717508104876,6.95,166.06,165.99,2.229]
[1717508105176,2.2283,166.04,165.99,9.179]
[1717508105596,2.2283,166.04,166.0,2.2289]
[1717508106093,2.2282,166.05,166.0,2.2289]
[1717508106276,2.2282,166.05,166.02,6.95]
[1717508106476,2.2282,166.05,166.01,9.1787]
[1717508106684,2.2282,166.05,165.97,4.4584]
[1717508106685,2.228,166.07,166.02,9.1785]
[1717508106877,2.228,166.07,166.03,9.1785]
[1717508107072,17.5413,166.1,166.03,9.1785]
[1717508107279,2.2278,166.08,166.05,6.95]
[1717508107497,2.2277,166.1,166.05,9.1782]
[1717508107792,2.2277,166.09,166.05,9.1782]
[1717508107995,2.2277,166.09,166.05,6.95]
[1717508109178,2.2277,166.09,166.04,2.2283]
[1717508109673,2.2278,166.08,166.03,2.2284]
[1717508109912,2.2278,166.08,166.04,6.95]
[1717508110399,2.2277,166.09,166.04,9.1783]
[1717508111188,2.2277,166.09,166.04,2.2283]
[1717508112292,2.2278,166.08,166.03,2.2284]
[1717508112903,2.2278,166.08,166.04,2.2283]
[1717508113082,2.2278,166.08,166.04,6.95]
[1717508113286,2.2279,166.07,166.04,6.95]
[1717508113701,2.2279,166.07,166.03,9.1784]
[1717508113991,2.2281,166.06,166.02,2.2286]
[1717508114201,2.2281,166.06,166.03,6.95]
[1717508114389,2.228,166.07,166.02,9.1786]
[1717508114782,2.2282,166.05,166.01,2.2287]
[1717508116280,6.95,166.07,165.9,15.8955]
[1717508116481,2.229,166.0,165.96,6.95]
[1717508117213,6.95,166.02,165.95,2.2295]
[1717508117393,2.229,165.99,165.94,2.2296]
[1717508117580,2.229,165.99,165.94,9.1796]
[1717508118114,2.2289,166.0,165.95,9.1795]
[1717508119206,2.3988,166.01,165.96,2.2294]
[1717508119402,2.2287,166.02,165.97,9.1793]
[1717508120110,2.2288,166.01,165.96,9.1794]
[1717508121007,2.2288,166.01,165.97,2.2293]
[1717508121184,2.2286,166.02,165.97,6.95]
[1717508121700,2.2288,166.01,165.98,6.95]
[1717508122023,2.2288,166.01,165.97,6.95]
[1717508122303,2.2288,166.01,165.97,9.1793]
[1717508122901,2.2288,166.01,165.97,6.95]
[1717508123328,2.229,165.99,165.92,10.6241]
[1717508123494,2.229,165.99,165.94,9.1796]
[1717508124113,9.1789,166.0,165.95,2.2295]
[1717508124289,2.2289,166.0,165.95,17.40442675]
[1717508124797,9.1788,166.01,165.96,2.2294]
[1717508124992,2.2286,166.02,165.97,8.7760712]
[1717508125210,2.2286,166.02,165.97,15.7260712]
[1717508125388,2.2286,166.02,165.97,9.1793]
[1717508125808,2.2288,166.01,165.97,6.95]
[1717508127727,2.2287,166.02,165.97,9.1793]
[1717508128318,2.2287,166.02,165.93,20.0681]
[1717508128319,2.2285,166.03,165.98,9.1791]
[1717508128615,2.2285,166.03,165.99,6.95]
[1717508128995,7.24478429,166.06,165.99,6.95]
[1717508129196,2.2284,166.04,165.99,9.179]
[1717508129396,2.2284,166.04,166.0,6.95]
[1717508129925,6.95,166.06,166.0,6.95]
[1717508130114,2.2286,166.03,165.99,6.95]
[1717508130325,2.2286,166.03,165.98,9.1791]
[1717508130702,2.2286,166.02,165.98,6.95]
[1717508131001,2.2286,166.02,165.97,9.1792]
[1717508132031,2.2285,166.03,165.99,2.229]
[1717508132334,2.2284,166.04,165.99,9.179]
[1717508133325,2.2285,166.03,165.98,9.1791]
[1717508133523,2.2285,166.03,165.99,6.95]
[1717508133816,2.2284,166.04,165.99,9.1789]
[1717508135423,2.2285,166.03,165.98,2.2291]
[1717508135627,2.2285,166.03,165.99,6.95]
[1717508137327,2.2285,166.03,165.98,9.1791]
[1717508138324,2.2286,166.02,165.98,6.95]
[1717508139217,2.2286,166.02,165.97,2.2292]
[1717508139428,2.2286,166.02,165.97,9.1792]
[1717508139612,2.2286,166.02,165.97,2.2292]
[1717508140119,2.2286,166.02,165.97,9.1792]
[1717508140341,2.2286,166.02,165.97,2.2292]
[1717508140518,2.2286,166.02,165.97,9.1792]
[1717508140830,2.2286,166.02,165.98,2.2291]
[1717508141125,2.2286,166.02,165.97,2.2292]
[1717508142124,4.4569,166.04,165.96,2.2293]
[1717508142303,9.1789,166.0,165.95,2.2295]
[1717508142499,2.229,165.99,165.95,2.2295]
[1717508142903,2.2289,166.0,165.95,2.2295]
[1717508144126,2.229,165.99,165.95,2.2295]
[1717508144301,2.229,165.99,165.94,6.95]
[1717508144302,2.229,165.99,165.94,2.2296]
[1717508144505,2.229,165.99,165.91,4.4601]
[1717508144506,2.2293,165.97,165.91,2.23]
[1717508144704,15.5135,166.01,165.87,6.3347]
[1717508144904,0.17,165.98,165.92,6.95]
[1717508145104,0.17,165.98,165.93,6.95]
[1717508145105,2.3992,165.98,165.93,6.95]
[1717508145311,0.17,166.0,165.93,2.2298]
[1717508145611,0.34,166.0,165.94,6.95]
[1717508145817,2.2291,165.98,165.93,6.95]
[1717508146044,2.2292,165.98,165.92,2.2299]
[1717508146209,2.2292,165.98,165.93,6.95]
[1717508147628,2.2292,165.98,165.92,2.2299]
[1717508147940,2.2292,165.98,165.93,6.95]
[1717508148135,2.2292,165.98,165.93,9.1798]
[1717508148343,2.2292,165.98,165.93,6.95]
[1717508149138,8.3604,165.98,165.92,2.2299]
[1717508149429,8.3604,165.98,165.92,9.1799]
[1717508150111,2.2292,165.98,165.93,6.95]
[1717508150819,2.2293,165.97,165.91,2.23]
[1717508151021,2.2293,165.97,165.92,6.95]
[1717508151212,2.2294,165.96,165.9,2.2302]
[1717508151418,2.2294,165.96,165.92,6.95]
[1717508152118,2.2297,165.94,165.89,2.2303]
[1717508152312,2.2297,165.94,165.9,6.95]
[1717508152521,2.2296,165.95,165.9,9.1802]
[1717508152719,2.2296,165.95,165.9,2.2302]
[1717508152927,2.2296,165.95,165.9,9.1802]
[1717508153217,2.2296,165.95,165.9,2.2302]
[1717508153417,2.2296,165.95,165.9,9.1802]
[1717508154232,2.2296,165.95,165.91,9.1801]
[1717508154439,2.2294,165.96,165.92,6.95]
[1717508154644,2.2296,165.95,165.91,2.2301]
[1717508154818,0.17,165.97,165.92,6.95]
[1717508155012,2.2295,165.96,165.92,6.95]
[1717508155415,2.2295,165.95,165.92,6.95]
[1717508155755,2.2295,165.95,165.91,6.95]
[1717508157209,2.2297,165.94,165.9,2.2302]
[1717508157413,2.2297,165.94,165.91,6.95]
[1717508158034,2.2297,165.94,165.9,2.2302]
[1717508158215,2.2298,165.93,165.91,6.95]
[1717508158417,2.2297,165.94,165.91,6.95]
[1717508159343,7.12,165.97,165.91,6.95]
[1717508159344,2.2298,165.93,165.91,6.95]
[1717508159633,2.2297,165.94,165.91,6.95]
[1717508161021,6.3049,165.99,165.93,6.95]
[1717508161022,10.763,165.99,165.93,6.95]
[1717508161242,2.2294,165.97,165.93,6.95]
[1717508161938,13.373,166.01,165.94,9.1796]
[1717508162148,2.2292,165.98,165.94,9.1796]
[1717508162433,2.2293,165.97,165.94,6.95]
[1717508162649,11.408,166.0,165.94,6.95]
[1717508163062,2.2294,165.97,165.94,6.95]
[1717508163222,2.2294,165.96,165.92,2.2299]
[1717508163430,2.2294,165.96,165.93,6.95]
[1717508163623,11.4082,165.99,165.91,2.23]
[1717508163846,2.2293,165.97,165.94,6.95]
[1717508164363,2.2291,165.99,165.95,6.95]
[1717508164647,21.00771349,166.03,165.96,6.95]
[1717508164648,2.2289,166.0,165.96,6.95]
[1717508165027,2.2288,166.01,165.96,2.2293]
[1717508165227,2.2288,166.01,165.97,6.95]
[1717508165428,4.457,166.03,165.97,6.95]
[1717508165648,2.2289,166.0,165.97,6.95]
[1717508166331,2.2287,166.01,165.97,9.1793]
[1717508166644,2.2287,166.01,165.97,2.2293]
[1717508166833,2.2287,166.01,165.98,6.95]
[1717508167034,2.2287,166.01,165.99,6.95]
[1717508167229,18.0913,166.05,165.99,6.95]
[1717508167230,2.2287,166.02,165.99,6.95]
[1717508168045,2.2285,166.03,165.99,6.95]
[1717508168342,2.2283,166.04,166.01,6.95]
[1717508169223,2.2281,166.06,166.02,2.2286]
[1717508169437,2.2282,166.05,166.03,6.95]
[1717508170050,2.2281,166.06,166.03,6.95]
[1717508170361,2.228,166.07,166.03,6.95]
[1717508170648,2.228,166.07,166.04,6.95]
[1717508170851,2.2278,166.08,166.04,6.95]
[1717508171158,2.2278,166.08,166.04,9.1783]
[1717508171361,2.2278,166.08,166.04,6.95]
[1717508172328,2.2278,166.08,166.05,6.95]
[1717508172840,11.4047,166.12,166.06,6.95]
[1717508173026,0.34,166.11,166.06,6.95]
[1717508173222,17.44565677,166.15,166.07,6.95]
[1717508173460,2.2276,166.1,166.08,6.95]
[1717508173743,2.2276,166.1,166.06,6.95]
[1717508174147,2.2276,166.1,166.05,9.1782]
[1717508174327,2.2276,166.1,166.05,15.406]
[1717508174518,2.2276,166.1,166.05,13.1778]
[1717508174717,2.2277,166.09,166.05,13.1778]
[1717508175757,2.2276,166.1,166.05,15.406]
[1717508176445,2.2277,166.09,166.05,6.2278]
[1717508176826,2.2277,166.09,166.04,9.1783]
[1717508177032,2.2277,166.09,166.04,2.2283]
[1717508177231,9.1777,166.09,166.04,2.2283]
[1717508177461,6.8513,166.14,166.02,2.2285]
[1717508177759,2.228,166.07,166.02,47.2285]
[1717508177934,6.95,166.06,166.01,6.2197]
[1717508178135,2.2284,166.04,165.99,2.229]
[1717508178335,2.2284,166.04,165.98,6.95]
[1717508178530,2.2284,166.04,165.99,2.229]
[1717508178747,9.1784,166.04,165.99,2.229]
[1717508178963,9.1784,166.04,166.0,2.2289]
[1717508179870,9.1782,166.05,166.0,2.2289]
[1717508180859,4.4561,166.07,165.97,16.5019]
[1717508181037,2.2283,166.04,165.99,2.229]
[1717508181353,9.1783,166.04,165.99,2.229]
[1717508183834,2.2283,166.04,165.99,2.229]
[1717508184029,2.2282,166.05,166.0,2.2288]
[1717508184258,2.2279,166.08,166.02,6.95]
[1717508184435,2.2277,166.09,166.04,2.2282]
[1717508184639,2.2276,166.1,166.05,2.2281]
[1717508185463,2.2277,166.09,166.04,9.1783]
[1717508185672,2.2277,166.09,166.04,15.3213]
[1717508185882,2.2276,166.1,166.05,2.2281]
[1717508186536,2.2277,166.09,166.05,2.2281]
[1717508186737,2.2276,166.1,166.05,2.2281]
[1717508187045,2.2274,166.11,166.06,2.2281]
[1717508187246,6.95,166.11,166.07,2.2279]
[1717508187461,9.1774,166.11,166.06,2.228]
[1717508189056,2.2274,166.11,166.06,2.228]
[1717508189265,2.2274,166.11,166.07,2.2279]
[1717508189459,2.2274,166.11,166.06,2.228]
[1717508189763,2.2275,166.1,166.06,2.228]
[1717508191069,9.1774,166.11,166.06,2.228]
[1717508191374,2.2275,166.1,166.06,2.228]
[1717508191548,9.1775,166.1,166.06,2.228]
[1717508193147,6.95,166.1,166.06,2.228]
[1717508193580,9.1775,166.1,166.05,2.2282]
[1717508193754,2.2277,166.09,166.03,12.9602]
[1717508194552,2.2277,166.09,166.03,6.0102]
[1717508194754,9.1776,166.1,166.05,2.2281]
[1717508195050,9.1776,166.1,166.06,2.2281]
[1717508195472,6.95,166.1,166.06,2.2281]
[1717508195849,9.1774,166.11,166.06,2.2281]
[1717508196284,9.1773,166.12,166.07,2.2278]
[1717508196486,9.1773,166.12,166.06,6.95]
[1717508196766,2.2274,166.11,166.07,2.2279]
[1717508197161,9.1773,166.12,166.07,2.2279]
[1717508197470,2.2274,166.11,166.07,2.2279]
[1717508197671,2.2274,166.11,166.06,9.178]
[1717508197870,2.2274,166.11,166.06,2.228]
[1717508198178,9.1773,166.12,166.07,2.2279]
[1717508198554,2.2273,166.12,166.07,2.2279]
[1717508199270,9.1773,166.12,166.07,2.2279]
[1717508199466,2.2274,166.11,166.07,2.2279]
[1717508202243,9.1773,166.12,166.07,2.2279]
[1717508202469,9.1773,166.12,166.08,2.2278]
[1717508202672,2.2272,166.13,166.09,2.2277]
[1717508203175,2.2272,166.13,166.07,6.95]
[1717508203176,2.2272,166.13,166.08,2.2277]
[1717508203352,2.2272,166.13,166.08,6.95]
[1717508203549,2.2272,166.13,166.09,2.2276]
[1717508204876,2.2272,166.13,166.08,9.1777]
[1717508205178,2.2272,166.13,166.09,2.2276]
[1717508205355,2.2272,166.13,166.09,8.5657]
[1717508205556,2.2272,166.13,166.09,15.5157]
[1717508206662,2.2269,166.15,166.1,6.95]
[1717508206857,11.4033,166.17,166.11,6.95]
[1717508207062,2.2268,166.16,166.11,9.1773]
[1717508207980,2.2269,166.15,166.11,9.1773]
[1717508208281,2.227,166.14,166.1,6.95]
[1717508209006,2.2269,166.15,166.1,9.1774]
[1717508209177,2.2269,166.15,166.11,2.2274]
[1717508210388,2.2269,166.15,166.11,9.1774]
[1717508211374,2.2269,166.15,166.11,15.8286]
[1717508211577,2.2268,166.16,166.11,8.8786]
[1717508211889,2.2268,166.16,166.11,15.8285]
[1717508212062,2.2269,166.15,166.11,8.8785]
[1717508212271,2.2267,166.16,166.12,2.2272]
[1717508212985,2.2265,166.18,166.13,9.1771]
[1717508213170,2.2265,166.18,166.14,2.2269]
[1717508213573,2.2263,166.19,166.15,2.2268]
[1717508213865,2.2265,166.18,166.14,2.227]
[1717508214180,2.2264,166.19,166.15,9.1768]
[1717508214367,4.4515,166.24,166.16,9.1766]
[1717508214687,2.2262,166.2,166.16,9.1766]
[1717508215062,2.2262,166.2,166.16,2.2266]
[1717508215465,2.2262,166.2,166.15,9.1768]
[1717508215797,2.2263,166.19,166.15,15.8093]
[1717508215979,2.2262,166.2,166.15,15.8093]
[1717508217187,2.2262,166.2,166.16,9.1767]
[1717508217395,2.2262,166.2,166.16,15.6317]
[1717508217766,2.2261,166.21,166.17,6.95]
[1717508217974,2.2262,166.2,166.17,6.95]
[1717508218293,2.2261,166.21,166.17,6.95]
[1717508218797,2.2262,166.2,166.17,6.95]
[1717508218970,2.2262,166.2,166.17,12.9668]
[1717508219766,2.2261,166.21,166.17,15.1934]
[1717508219990,11.43395677,166.26,166.18,2.2264]
[1717508220295,2.2259,166.23,166.19,6.95]
[1717508220468,2.2259,166.23,166.19,16.52331098]
[1717508220794,2.2256,166.25,166.2,6.1453]
[1717508220982,2.2256,166.25,166.21,6.95]
[1717508221188,9.20845677,166.26,166.21,9.176]
[1717508221679,2.2254,166.26,166.21,15.2194]
[1717508221882,2.2255,166.25,166.21,6.0434]
[1717508222469,2.2257,166.24,166.21,6.0434]
[1717508222672,2.2257,166.24,166.19,9.1763]
[1717508222891,2.2257,166.24,166.19,15.2879]
[1717508223070,2.2256,166.25,166.2,8.3378]
[1717508223392,2.2256,166.25,166.2,15.2878]
[1717508224082,6.95,166.22,166.17,6.3678]
[1717508224483,2.2261,166.21,166.17,6.3678]
[1717508224704,2.2261,166.21,166.16,2.2266]
[1717508224990,2.2265,166.18,166.13,2.2271]
[1717508225166,2.2265,166.18,166.14,2.227]
[1717508225367,2.2265,166.18,166.13,6.0982]
[1717508225699,2.2266,166.17,166.12,6.95]
[1717508225988,2.2266,166.17,166.12,2.2272]
[1717508226571,6.95,166.18,166.12,2.2272]
[1717508226890,9.1765,166.18,166.13,2.2271]
[1717508227477,2.2268,166.16,166.09,6.0982]
[1717508227680,2.2268,166.16,166.11,2.2273]
[1717508228078,2.2265,166.18,166.13,2.2271]
[1717508229802,9.1765,166.18,166.13,2.2271]
[1717508230004,2.2269,166.15,166.1,2.2274]
[1717508230177,6.95,166.17,166.1,6.95]
[1717508230379,6.95,166.16,166.1,6.95]
[1717508230576,2.2269,166.15,166.1,9.1774]
[1717508230775,2.2269,166.15,166.11,2.2274]
[1717508231014,9.1768,166.16,166.11,2.2274]
[1717508231306,2.2269,166.15,166.11,2.2274]
[1717508231485,2.2269,166.15,166.1,9.1775]
[1717508231993,2.2269,166.15,166.11,2.2274]
[1717508232606,9.1767,166.16,166.11,2.2274]
[1717508232801,2.2269,166.15,166.11,2.2274]
[1717508233002,2.2269,166.15,166.1,2.2275]
[1717508233193,2.2269,166.15,166.1,9.1775]
[1717508233591,2.2269,166.15,166.1,2.2275]
[1717508234906,2.2271,166.14,166.09,6.0982]
[1717508235617,9.1769,166.15,166.11,2.2274]
[1717508235910,2.2269,166.15,166.1,2.2275]
[1717508236391,2.227,166.14,166.09,9.1776]
[1717508237426,9.1771,166.13,166.09,2.2276]
[1717508237717,6.95,166.13,166.09,2.2276]
[1717508238416,9.1771,166.14,166.09,2.2276]
[1717508240013,2.2271,166.13,166.09,2.2276]
[1717508240204,6.95,166.13,166.08,2.2277]
[1717508240405,2.2271,166.13,166.09,2.2276]
[1717508240602,9.177,166.14,166.09,2.2276]
[1717508240923,2.2271,166.13,166.08,2.2277]
[1717508241297,9.1771,166.13,166.08,2.2277]
[1717508242026,9.1773,166.12,166.08,2.2277]
[1717508242700,2.2273,166.12,166.08,2.2277]
[1717508243015,9.1772,166.13,166.08,2.2277]
[1717508244314,9.1772,166.13,166.09,2.2276]
[1717508244692,6.95,166.15,166.09,6.95]
[1717508244890,9.1766,166.17,166.12,2.2272]
[1717508245332,2.2268,166.16,166.11,9.1773]
[1717508245613,2.2269,166.15,166.1,9.1775]
[1717508245818,2.2269,166.15,166.1,6.95]
[1717508246205,2.2269,166.15,166.11,2.2273]
[1717508246587,2.2269,166.15,166.1,9.1775]
[1717508246792,2.2269,166.15,166.1,2.2275]
[1717508247092,2.227,166.14,166.1,2.2275]
[1717508247793,2.227,166.14,166.09,2.2276]
[1717508248022,9.1772,166.13,166.09,2.2276]
[1717508248403,6.95,166.12,166.09,2.2276]
[1717508248602,9.1772,166.13,166.09,2.2276]
[1717508249904,9.1772,166.13,166.05,6.0168]
[1717508249905,6.95,166.13,166.05,6.0168]
[1717508250226,9.1774,166.12,166.07,2.2279]
[1717508250401,9.1774,166.12,166.08,2.2278]
[1717508251294,6.95,166.12,166.08,2.2278]
[1717508251710,9.1772,166.13,166.09,2.2277]
[1717508252104,2.227,166.14,166.09,2.2277]
[1717508252919,2.227,166.14,166.08,2.2277]
[1717508252920,2.2273,166.12,166.08,2.2277]
[1717508253302,2.2272,166.13,166.08,2.2277]
[1717508253704,2.2273,166.12,166.07,9.1779]
[1717508253899,6.95,166.13,166.07,2.2279]
[1717508254126,2.2274,166.11,166.07,2.2279]
[1717508254422,6.95,166.13,166.08,2.2278]
[1717508254803,2.2274,166.12,166.07,2.2279]
[1717508255433,2.2274,166.11,166.07,2.2279]
[1717508256019,9.1773,166.12,166.08,2.2278]
[1717508256547,9.1773,166.12,166.07,2.2279]
[1717508258029,2.2273,166.12,166.08,2.2278]
[1717508261129,2.2273,166.12,166.07,2.2279]
[1717508261641,2.2273,166.12,166.08,2.2278]
[1717508261924,6.95,166.14,166.07,6.95]
[1717508262132,2.2271,166.13,166.08,51.95]
[1717508262304,2.2273,166.12,166.08,47.2277]
[1717508262507,2.2273,166.12,166.08,54.1777]
[1717508262706,2.2272,166.13,166.08,54.1777]
[1717508263235,6.95,166.14,166.09,2.2277]
[1717508263442,2.2272,166.13,166.08,54.1777]
[1717508264443,2.2273,166.12,166.08,54.1777]
[1717508265012,2.2275,166.11,166.05,6.0168]
[1717508265233,2.2275,166.11,166.06,6.95]
[1717508265536,2.2275,166.11,166.07,45.0]
[1717508265735,2.2275,166.11,166.06,45.0]
[1717508265946,2.2275,166.11,166.07,2.2279]
[1717508266240,6.5807,166.11,166.01,15.6009]
[1717508266530,9.1776,166.1,166.05,2.2281]
[1717508266740,9.1776,166.1,166.06,2.228]
[1717508266918,6.95,166.11,166.06,2.228]
[1717508267125,2.2274,166.11,166.07,2.2279]
[1717508267355,2.2274,166.11,166.06,9.178]
[1717508267721,2.2275,166.1,166.06,9.178]
[1717508267926,2.2275,166.1,166.06,2.228]
[1717508271451,2.2276,166.1,166.06,2.228]
[1717508271656,2.2276,166.1,166.06,9.178]
[1717508271829,22.144,166.15,166.05,4.4564]
[1717508272028,4.4537,166.16,166.09,2.2276]
[1717508272029,2.2271,166.13,166.09,2.2276]
[1717508272336,2.227,166.14,166.09,9.1776]
[1717508272739,2.2271,166.13,166.09,9.1776]
[1717508272927,2.227,166.14,166.1,6.95]
[1717508273527,2.227,166.14,166.1,9.1775]